bitfinex-derivatives/quotes_BNBF0:USTF0_20250424
["timestamp","ask_amount","ask_price","bid_price","bid_amount"]
[1745489186904,0.2914756,598.26,595.97,1.06377212]
[1745489186905,0.2914756,598.26,596.12,0.30778858]
[1745489187108,0.2914756,598.26,596.13,0.30778858]
[1745489187310,0.2914756,598.26,596.14,0.30778858]
[1745489187609,0.2914756,598.26,596.15,0.30778858]
[1745489187809,0.2914756,598.26,595.99,0.30778858]
[1745489188009,0.2914756,598.26,596.13,0.29145973]
[1745489188308,0.2914756,598.26,596.14,0.30778858]
[1745489188505,0.2914756,598.26,596.15,0.30778858]
[1745489188808,0.2914756,598.26,596.16,0.30778858]
[1745489189008,0.2914756,598.26,596.14,0.30778858]
[1745489189204,0.2914756,598.26,596.15,0.30778858]
[1745489189409,0.2914756,598.26,596.14,0.30778858]
[1745489192912,1.27196278,598.06,596.13,1.35522941]
[1745489193108,1.27196278,598.06,596.14,0.30778897]
[1745489193711,1.27196278,598.06,596.15,0.30778897]
[1745489193907,1.27196278,598.06,596.16,0.30778897]
[1745489194112,1.27196278,598.06,596.17,0.30778897]
[1745489194412,1.27196278,598.06,596.18,0.30778897]
[1745489194608,1.27196278,598.06,596.19,0.30778897]
[1745489194812,1.27196278,598.06,596.2,0.30778897]
[1745489195114,1.27196278,598.06,596.21,0.30778897]
[1745489195313,1.27196278,598.06,596.14,0.30778897]
[1745489195517,1.27196278,597.98,596.16,1.06377212]
[1745489195709,1.27196278,597.98,596.17,0.30778897]
[1745489196009,1.27196278,597.98,596.18,0.30778897]
[1745489196214,1.27196278,597.98,596.19,0.30779077]
[1745489196413,1.27196278,597.98,596.17,0.30779077]
[1745489196414,0.2914878,597.97,596.17,0.30779077]
[1745489196612,0.2914878,597.97,596.18,0.30779077]
[1745489196812,0.2914878,597.97,596.19,0.30779077]
[1745489197014,0.2914878,597.97,596.17,0.30779077]
[1745489197314,0.2914878,597.97,596.18,0.30779077]
[1745489197615,0.2914878,597.97,596.16,1.06377212]
[1745489197910,0.2914878,597.97,596.17,0.30779258]
[1745489198215,1.27196278,597.97,596.17,0.30779258]
[1745489199216,1.27196278,597.97,596.16,1.06377212]
[1745489199416,0.29148902,597.96,596.17,0.30779317]
[1745489200618,0.29148902,597.96,596.16,1.35526114]
[1745489200920,0.29148902,597.96,596.16,0.29148902]
[1745489201118,1.27196278,598.08,596.17,0.30779279]
[1745489201419,1.27196278,598.08,596.18,0.30779279]
[1745489201715,1.27196278,598.08,596.19,0.30779279]
[1745489201918,1.27196278,598.08,596.17,0.30779279]
[1745489202318,0.2914756,598.07,596.17,0.30779279]
[1745489203520,1.27196278,598.04,596.17,0.30779279]
[1745489204019,1.27196278,598.04,596.12,1.06377212]
[1745489204219,1.27196278,598.04,596.13,0.30778933]
[1745489205420,0.29148536,598.03,596.13,0.59927469]
[1745489205614,0.29148536,598.03,596.13,0.29148536]
[1745489205817,0.29148536,598.03,596.14,0.30779244]
[1745489206421,0.29148536,598.03,596.15,0.30779244]
[1745489206617,0.29148536,598.03,596.16,0.30779244]
[1745489206818,1.27196278,598.0,596.18,1.06377212]
[1745489207015,1.27196278,598.0,596.19,0.30779244]
[1745489207517,0.29148292,597.99,596.19,0.30779244]
[1745489209417,0.29148292,597.99,596.18,0.30779244]
[1745489209720,0.29148292,597.99,596.19,0.30779244]
[1745489209919,0.29148292,597.99,596.18,0.30779244]
[1745489210119,1.27196278,598.01,596.18,0.30779244]
[1745489211521,0.2914756,598.0,596.18,0.30779244]
[1745489212321,0.2914756,598.0,596.17,0.30779244]
[1745489212521,0.2914756,598.0,596.18,0.30779244]
[1745489212821,0.2914756,598.0,596.19,0.30779244]
[1745489213116,1.27196278,598.27,596.2,0.30779244]
[1745489213323,1.27196278,598.27,596.17,0.29144508]
[1745489213516,1.27196278,598.27,596.18,0.30779244]
[1745489214117,1.27196278,598.26,596.18,0.30779244]
[1745489214321,1.56341396,598.26,596.18,0.30779244]
[1745489217023,1.27196278,597.95,596.18,0.30779244]
[1745489219224,1.27196278,598.11,596.17,0.30779244]
[1745489219418,1.27196278,598.11,596.18,0.30779244]
[1745489219623,1.27196278,598.11,596.04,0.30779244]
[1745489219824,1.27196278,598.11,596.05,0.30779244]
[1745489220024,1.27196278,598.11,596.06,0.30779244]
[1745489220218,1.27196278,598.11,596.04,0.30779244]
[1745489220421,0.2915171,598.1,596.07,0.2915171]
[1745489220619,0.2915171,598.1,596.08,0.30779244]
[1745489222025,1.27196278,598.23,596.08,0.30779244]
[1745489222225,1.27196278,598.23,595.98,0.30779244]
[1745489222433,0.29149757,598.09,595.99,0.30779244]
[1745489222619,1.27196278,598.23,595.97,1.06377212]
[1745489222824,1.27196278,598.23,595.98,0.30783636]
[1745489223326,0.29150978,598.22,595.99,0.29150978]
[1745489223522,0.29150978,598.22,596.0,0.30783636]
[1745489224123,0.29150978,598.22,595.99,0.29150978]
[1745489224329,0.29150978,598.22,596.0,0.30783929]
[1745489224628,0.29150978,598.22,596.01,0.30783929]
[1745489224923,0.29150978,598.22,596.02,0.30783929]
[1745489225126,1.27196278,598.23,596.03,0.30783929]
[1745489225324,1.27196278,598.23,595.98,0.30783929]
[1745489225526,1.27196278,598.23,595.99,0.30783929]
[1745489225728,1.27196278,598.23,595.97,1.06377212]
[1745489226024,1.27196278,598.23,595.98,0.30789685]
[1745489226329,0.29153908,598.22,595.98,0.59943593]
[1745489226530,0.29153908,598.22,595.99,0.30789685]
[1745489228030,1.27196278,598.23,595.99,0.30789685]
[1745489228230,1.27196278,598.23,595.98,0.30789685]
[1745489228431,1.27196278,598.23,595.99,0.30789685]
[1745489228626,1.27196278,598.23,596.0,0.30789685]
[1745489228825,1.27196278,598.23,595.98,0.30789685]
[1745489229125,1.27196278,598.23,595.99,0.30789685]
[1745489229325,0.29153908,598.22,595.98,0.59943593]
[1745489229530,0.29153908,598.22,595.99,0.30789685]
[1745489229732,1.27196278,597.88,595.99,0.30789685]
[1745489230732,1.27196278,597.88,596.0,0.30790055]
[1745489230931,1.27196278,597.88,595.99,0.30790055]
[1745489231232,1.27196278,597.88,596.0,0.30790055]
[1745489231531,1.27196278,597.88,596.01,0.30790055]
[1745489231733,1.27196278,597.88,595.91,0.30790055]
[1745489232031,1.27196278,597.88,595.92,0.30790055]
[1745489232227,1.27196278,597.88,595.91,0.30790055]
[1745489232533,0.29159038,597.87,595.92,0.59949093]
[1745489232734,0.29159038,597.87,595.93,0.30790055]
[1745489232929,0.29159038,597.87,595.92,0.29159038]
[1745489232930,0.29159038,597.87,595.94,0.30790055]
[1745489233129,0.29159038,597.87,595.93,0.30790055]
[1745489233333,0.29159038,597.87,595.94,0.30790055]
[1745489233531,0.29159038,597.87,595.93,0.30790055]
[1745489233729,0.29159038,597.87,595.94,0.30790055]
[1745489233928,0.29159038,597.87,595.93,0.30790055]
[1745489234229,1.27196278,597.86,595.93,0.30790055]
[1745489234435,1.27196278,597.86,595.88,0.30790055]
[1745489234633,1.27196278,597.86,595.89,0.30790055]
[1745489234835,1.27196278,597.86,595.9,0.30790055]
[1745489235035,1.27196278,597.86,595.91,0.30790055]
[1745489235235,1.27196278,597.86,595.92,0.30790055]
[1745489235534,0.29158672,597.85,595.93,0.30790055]
[1745489236634,0.29158672,597.85,595.94,0.30790055]
[1745489236934,0.29158672,597.85,595.95,0.30790055]
[1745489237134,1.27196278,597.94,595.96,0.30790055]
[1745489237429,1.27196278,597.94,595.97,0.30790055]
[1745489237629,1.99796278,597.94,595.93,0.30790055]
[1745489237832,1.99796278,597.94,595.94,0.30790055]
[1745489238229,1.27196278,597.93,595.95,0.30790055]
[1745489238434,1.5635214,597.93,595.92,1.78955862]
[1745489238631,1.5635214,597.93,595.93,0.30788578]
[1745489238836,1.5635214,597.93,595.94,0.30788578]
[1745489239035,1.5635214,597.93,595.95,0.30788578]
[1745489239231,1.5635214,597.93,595.93,0.30788578]
[1745489239437,1.5635214,597.93,595.94,0.30788578]
[1745489239732,1.5635214,597.93,595.95,0.30788578]
[1745489239931,1.5635214,597.93,595.92,1.78955862]
[1745489240137,1.5635214,597.93,595.93,0.30788617]
[1745489240438,0.29155862,597.93,595.93,0.30788617]
[1745489241234,0.29155862,597.93,595.94,0.30788617]
[1745489241737,0.29155862,597.93,595.95,0.30788617]
[1745489241937,0.29155862,597.93,595.96,0.30788617]
[1745489242133,0.29155862,597.93,595.97,0.30788617]
[1745489242339,0.29155862,597.93,595.98,0.30788617]
[1745489242538,0.29155862,597.93,595.99,0.30788617]
[1745489242738,0.29155862,597.93,595.93,0.30788617]
[1745489242938,0.29155862,597.93,595.94,0.30788617]
[1745489243234,0.726,597.94,595.95,0.30789095]
[1745489243439,0.726,597.94,595.96,0.30789095]
[1745489243639,0.726,597.94,595.97,0.30789095]
[1745489243842,1.27196278,597.9,595.98,0.30789095]
[1745489244034,1.27196278,597.9,595.99,0.30789095]
[1745489244237,1.27196278,597.9,596.0,0.30789095]
[1745489244437,0.29156351,597.89,596.01,0.30789095]
[1745489244641,0.29156351,597.89,596.02,0.30789095]
[1745489244841,0.29156351,597.89,595.95,0.30789095]
[1745489245037,0.29156351,597.89,595.96,0.30789095]
[1745489245341,0.29156351,597.89,595.97,0.30789095]
[1745489245541,0.29156351,597.89,595.98,0.30789095]
[1745489245741,0.29156351,597.89,595.99,0.30789095]
[1745489245943,1.27196278,597.84,596.0,0.30789095]
[1745489246242,1.27196278,597.84,596.01,0.30789095]
[1745489246442,1.27196278,597.84,595.95,0.30789095]
[1745489246639,1.27196278,597.84,595.96,0.30789095]
[1745489246841,1.27196278,597.84,595.97,0.30789095]
[1745489247041,1.27196278,597.84,595.98,0.30789095]
[1745489247241,1.27196278,597.84,595.99,0.30789095]
[1745489247441,0.29156839,597.83,596.0,0.30789095]
[1745489247636,0.29156839,597.83,596.01,0.30789095]
[1745489247843,1.27196278,597.81,596.02,0.30789095]
[1745489248143,1.27196278,597.81,596.03,0.30789095]
[1745489248443,1.27196278,597.81,596.04,0.30789095]
[1745489248640,1.27196278,597.81,596.05,0.30789095]
[1745489248841,1.27196278,597.81,595.98,0.30789095]
[1745489249142,1.27196278,597.81,595.97,1.06377212]
[1745489249143,1.27196278,597.81,595.99,0.30789095]
[1745489249341,1.27196278,597.81,595.98,0.30789095]
[1745489249543,1.27196278,597.81,595.99,0.30789095]
[1745489249842,1.27196278,597.81,596.0,0.30789095]
[1745489250038,1.27196278,597.81,596.01,0.30789095]
[1745489250237,1.27196278,597.81,596.02,0.30789095]
[1745489250444,1.27196278,597.81,595.98,0.30789095]
[1745489250643,0.29156839,597.83,595.99,0.30789095]
[1745489250842,0.29156839,597.83,596.0,0.30789095]
[1745489251043,0.29156839,597.83,596.01,0.30789095]
[1745489251342,0.29156839,597.83,596.02,0.30789095]
[1745489251540,0.29156839,597.83,596.03,0.30789095]
[1745489251741,0.29156839,597.83,596.04,0.30789095]
[1745489252037,0.29156839,597.83,596.05,0.30789095]
[1745489252342,1.27196278,598.1,596.06,0.30789095]
[1745489252639,1.27196278,598.1,596.07,0.30789095]
[1745489253042,1.27196278,598.1,596.08,1.148]
[1745489253238,1.27196278,598.1,596.09,0.30781288]
[1745489253443,0.29149269,598.09,596.09,0.30781288]
[1745489253841,1.27196278,597.99,596.12,1.06377212]
[1745489254145,1.27196278,597.99,596.13,0.30781288]
[1745489254945,1.036,597.98,596.13,0.30781288]
[1745489256348,0.29150001,597.97,596.12,1.06377212]
[1745489256547,0.29150001,597.97,596.13,0.30781709]
[1745489257040,0.29150001,597.97,596.14,0.30781709]
[1745489257245,0.29150001,597.97,596.11,0.30781709]
[1745489257449,0.29150001,597.97,596.12,0.30781709]
[1745489257647,0.29150001,597.97,596.11,0.30781709]
[1745489258043,1.036,597.98,596.11,0.30781709]
[1745489258545,0.29150245,597.96,596.11,0.30781709]
[1745489258748,0.29150245,597.96,596.12,1.032]
[1745489258949,0.29150245,597.96,596.13,0.30781709]
[1745489259149,0.29150245,597.96,596.14,0.30781709]
[1745489259350,0.29150245,597.96,596.15,0.30781709]
[1745489259649,0.29150245,597.96,596.16,0.30781709]
[1745489259950,0.29150245,597.96,596.17,0.30781709]
[1745489260147,0.29150245,597.96,596.13,0.30781709]
[1745489261247,1.036,597.98,596.13,0.30781709]
[1745489261845,1.27196278,597.89,596.13,0.30781709]
[1745489262451,0.29154763,597.88,596.13,0.30781709]
[1745489264046,1.27196278,597.89,596.13,0.30781709]
[1745489264850,1.036,597.98,596.13,0.30781709]
[1745489265248,0.29153664,597.97,596.13,0.30781709]
[1745489267151,1.036,597.98,596.13,0.30781709]
[1745489267552,1.036,597.98,596.12,1.92]
[1745489267745,1.036,597.98,596.13,0.30789572]
[1745489268451,0.29154153,597.97,596.13,0.30789572]
[1745489270150,1.036,597.98,596.13,0.30789572]
[1745489270653,1.036,597.98,596.12,1.92]
[1745489270846,1.036,597.98,596.13,0.30789941]
[1745489271347,0.29154641,597.97,596.13,0.30789941]
[1745489273052,1.036,597.98,596.13,0.30789941]
[1745489273254,1.036,597.98,596.14,1.076]
[1745489273454,1.036,597.98,596.15,0.30789941]
[1745489274352,0.2915513,597.97,596.15,0.30789941]
[1745489275656,0.2915513,597.97,596.16,0.30789261]
[1745489275858,0.2915513,597.97,596.15,0.30789261]
[1745489276057,1.036,597.98,596.16,0.30789261]
[1745489276460,0.2915342,597.96,596.17,0.30789261]
[1745489276657,0.2915342,597.96,596.15,0.30789261]
[1745489277153,0.2915342,597.96,596.16,0.30789621]
[1745489277353,0.2915342,597.96,596.15,0.30789621]
[1745489278658,0.2915342,597.96,596.14,1.3675342]
[1745489278861,0.2915342,597.96,596.15,0.30789365]
[1745489279158,1.036,597.98,596.15,0.30789365]
[1745489280457,0.2915342,597.97,596.15,0.30789365]
[1745489281359,0.2915342,597.97,596.14,1.3675342]
[1745489281560,0.2915342,597.97,596.15,0.30788567]
[1745489282061,1.036,597.98,596.15,0.30788567]
[1745489282857,1.036,597.98,596.14,1.076]
[1745489283058,1.27196278,597.99,596.15,0.30787688]
[1745489283460,1.27196278,597.99,596.15,1.38387688]
[1745489283461,0.29152199,597.97,596.15,1.38387688]
[1745489283662,0.29152199,597.97,596.16,0.30787688]
[1745489284462,0.29152199,597.97,596.15,1.076]
[1745489284665,0.29152199,597.97,596.16,0.30784868]
[1745489285057,1.27196278,597.99,596.16,0.30784868]
[1745489285659,0.822,597.98,596.16,0.30784868]
[1745489286162,0.822,597.98,596.17,0.30784628]
[1745489286361,0.29152077,597.97,596.16,0.30784628]
[1745489286563,0.29152077,597.97,596.17,0.30784628]
[1745489286762,0.29152077,597.97,596.16,0.30784628]
[1745489286964,0.29152077,597.97,596.17,0.30784628]
[1745489287161,0.29152077,597.97,596.18,0.30784628]
[1745489287359,0.29152077,597.97,596.16,0.30784628]
[1745489287559,0.29152077,597.97,596.17,0.30784628]
[1745489287763,0.29152077,597.97,596.16,0.30784628]
[1745489288065,0.29152077,597.97,596.17,0.776]
[1745489288265,0.29152077,597.97,596.18,0.30784628]
[1745489289166,0.29152077,597.97,596.17,0.776]
[1745489289466,0.29152077,597.97,596.18,0.30785701]
[1745489291068,0.822,597.98,596.18,0.30785701]
[1745489292470,0.29151832,597.97,596.18,0.30785701]
[1745489293968,0.29151832,597.97,596.17,1.06751832]
[1745489294173,0.822,597.98,596.18,0.30786065]
[1745489294373,0.29151832,597.96,596.18,0.30786065]
[1745489297075,0.822,597.98,596.18,0.30786065]
[1745489297372,0.29152565,597.95,596.17,1.06752565]
[1745489297676,0.29152565,597.95,596.18,0.30787522]
[1745489299578,0.29152565,597.95,596.18,1.56787522]
[1745489299878,0.29152565,597.95,596.19,0.30787522]
[1745489300077,0.822,597.98,596.19,0.30787522]
[1745489301179,0.822,597.98,596.18,1.26]
[1745489301381,0.29155862,597.97,596.18,1.26]
[1745489301980,1.27196278,597.81,596.18,1.26]
[1745489303782,1.27196278,597.81,596.18,2.065]
[1745489304284,0.29157939,597.8,596.18,2.065]
[1745489306080,1.27196278,597.95,596.18,2.065]
[1745489307285,0.29158183,597.94,596.18,2.065]
[1745489308689,1.27196278,597.68,596.18,2.065]
[1745489310589,1.27196278,597.63,596.18,2.065]
[1745489313390,0.29162581,597.62,596.18,2.065]
[1745489314890,0.29162581,597.62,596.18,3.141]
[1745489315189,1.27196278,597.8,596.18,3.141]
[1745489315891,1.27196278,597.83,596.18,3.141]
[1745489316390,0.29160138,597.82,596.18,3.141]
[1745489318089,1.27196278,597.83,596.18,3.141]
[1745489318289,1.036,597.82,596.18,3.141]
[1745489319392,0.2916026,597.81,596.18,3.141]
[1745489321093,1.036,597.82,596.18,3.141]
[1745489322393,0.2916026,597.81,596.18,3.141]
[1745489324095,1.036,597.82,596.18,3.141]
[1745489324697,1.27196278,597.71,596.18,3.141]
[1745489325397,0.29161604,597.7,596.18,3.141]
[1745489327092,1.27196278,597.71,596.18,3.141]
[1745489327293,0.29161604,597.69,596.18,3.141]
[1745489328803,1.27196278,597.58,596.18,3.141]
[1745489330600,1.27196278,597.58,596.19,0.30800415]
[1745489330797,1.27196278,597.58,596.18,3.141]
[1745489331004,1.27196278,597.58,596.19,0.30800448]
[1745489331402,1.036,597.82,596.19,0.30800448]
[1745489331403,1.27196278,597.53,596.19,0.30800448]
[1745489331797,1.27196278,597.53,596.18,1.881]
[1745489332002,1.27196278,597.53,596.19,0.30800505]
[1745489332202,1.27196278,597.53,596.18,1.881]
[1745489332398,1.27196278,597.53,596.19,0.30800497]
[1745489333606,1.27196278,597.41,596.19,0.30800497]
[1745489333804,1.27196278,597.41,596.18,1.881]
[1745489334002,1.27196278,597.41,596.19,0.30800706]
[1745489334902,1.27196278,597.41,596.2,0.973]
[1745489336104,1.27196278,597.36,596.2,0.973]
[1745489336504,1.27196278,597.36,596.21,1.022]
[1745489337406,0.29165514,597.35,596.21,1.022]
[1745489342113,1.27196278,597.62,596.21,1.022]
[1745489342514,0.29164292,597.61,596.21,1.022]
[1745489344118,0.29164292,597.61,596.22,0.809]
[1745489344719,0.945,597.6,596.22,0.809]
[1745489345423,0.29166125,597.59,596.22,0.809]
[1745489346423,1.27196278,597.4,596.22,0.809]
[1745489348526,0.29169793,597.39,596.22,0.809]
[1745489348828,1.27196278,597.31,596.22,0.809]
[1745489350725,1.27196278,597.31,596.23,1.1]
[1745489351331,1.27196278,597.33,596.23,1.1]
[1745489352432,0.29171993,597.32,596.23,1.1]
[1745489354230,2.21696278,597.6,596.23,1.1]
[1745489355338,0.29167225,597.59,596.23,1.1]
[1745489357237,0.945,597.6,596.23,1.1]
[1745489358439,0.29167225,597.59,596.23,1.1]
[1745489360140,0.945,597.6,596.23,1.1]
[1745489361437,0.29167225,597.59,596.24,1.033]
[1745489362843,0.29167225,597.59,596.25,0.917]
[1745489363344,0.945,597.6,596.25,0.917]
[1745489363740,1.27196278,597.36,596.25,0.917]
[1745489364446,0.29169915,597.35,596.25,0.917]
[1745489366148,1.27196278,597.36,596.25,0.917]
[1745489366644,2.17131061,597.47,596.25,0.917]
[1745489366841,1.27196278,597.49,596.25,0.917]
[1745489367446,0.29169303,597.48,596.25,0.917]
[1745489368948,1.27196278,597.46,596.25,0.917]
[1745489370049,0.925,597.45,596.25,0.917]
[1745489370349,1.21667714,597.45,596.25,0.917]
[1745489372251,0.925,597.45,596.25,0.917]
[1745489373453,0.29167837,597.44,596.25,0.917]
[1745489375050,0.925,597.45,596.25,0.917]
[1745489375450,0.29167592,597.43,596.25,0.917]
[1745489378046,0.925,597.45,596.25,0.917]
[1745489378551,0.29167592,597.42,596.25,0.917]
[1745489381152,0.925,597.45,596.25,0.917]
[1745489381452,0.29167592,597.41,596.25,0.917]
[1745489384148,0.925,597.45,596.25,0.917]
[1745489385453,0.29167592,597.44,596.25,0.917]
[1745489385852,0.29167592,597.44,596.24,1.033]
[1745489386148,1.5636387,597.44,596.24,1.033]
[1745489386346,1.5636387,597.44,596.23,1.1]
[1745489386852,1.5636387,597.44,596.22,0.809]
[1745489387151,1.27196278,597.44,596.22,0.809]
[1745489388153,1.27196278,597.44,596.23,0.897]
[1745489388549,0.29168081,597.43,596.23,0.897]
[1745489389152,0.29168081,597.43,596.24,1.079]
[1745489390054,0.925,597.45,596.24,1.079]
[1745489390448,0.925,597.45,596.25,1.196]
[1745489390954,1.27196278,597.42,596.25,1.196]
[1745489391457,0.29167959,597.41,596.25,1.196]
[1745489393156,1.27196278,597.42,596.25,1.196]
[1745489393458,0.29167959,597.4,596.25,1.196]
[1745489393857,1.27196278,597.3,596.25,1.196]
[1745489396260,1.27196278,597.27,596.25,1.196]
[1745489398858,0.847,597.26,596.25,1.196]
[1745489399159,1.27196278,597.22,596.25,1.196]
[1745489400461,0.29169915,597.21,596.25,1.196]
[1745489401563,1.27196278,597.18,596.25,1.196]
[1745489402462,0.29170404,597.17,596.25,1.196]
[1745489405061,1.27196278,597.19,596.25,1.196]
[1745489405961,1.27196278,597.19,596.26,1.035]
[1745489406566,0.847,597.26,596.26,1.035]
[1745489406766,0.29168448,597.23,596.26,1.035]
[1745489406966,0.29168448,597.23,596.27,1.026]
[1745489408169,0.847,597.26,596.27,1.026]
[1745489409471,0.2916747,597.25,596.27,1.026]
[1745489411066,0.847,597.26,596.27,1.026]
[1745489411371,0.2916747,597.24,596.27,1.026]
[1745489414074,1.27196278,597.68,596.27,1.026]
[1745489414771,1.27196278,597.72,596.27,1.026]
[1745489415576,0.29159893,597.71,596.27,1.026]
[1745489416976,1.036,597.7,596.27,1.026]
[1745489417178,1.27196278,597.67,596.27,1.849]
[1745489418779,1.56356416,597.69,596.27,1.849]
[1745489420284,1.27196278,597.69,596.27,1.849]
[1745489421185,1.27196278,597.69,596.28,0.30792997]
[1745489421486,0.2915855,597.68,596.28,0.30792997]
[1745489422587,0.2915855,597.68,596.27,1.849]
[1745489422782,0.2915855,597.68,596.28,0.30793362]
[1745489423081,1.27196278,597.69,596.28,0.30793362]
[1745489424090,1.27196278,597.69,596.27,1.849]
[1745489424287,1.27196278,597.69,596.28,0.3079336]
[1745489424588,0.2915855,597.68,596.28,0.3079336]
[1745489425188,1.27196278,597.65,596.28,0.3079336]
[1745489427284,1.27196278,597.65,596.27,1.849]
[1745489427486,0.29159527,597.64,596.27,1.849]
[1745489428391,1.27196278,597.57,596.27,1.849]
[1745489429591,0.29161482,597.56,596.27,1.849]
[1745489429891,1.27196278,597.57,596.27,1.849]
[1745489430792,0.29154885,597.59,596.27,1.849]
[1745489431692,0.29154885,597.59,596.28,0.30779989]
[1745489432189,1.036,597.7,596.28,0.30779989]
[1745489432594,1.036,597.7,596.28,1.16479989]
[1745489432796,1.036,597.7,596.29,0.30779989]
[1745489433392,0.29151955,597.69,596.29,0.30779989]
[1745489435097,1.036,597.7,596.28,0.857]
[1745489435298,1.036,597.7,596.29,1.48978536]
[1745489435500,1.036,597.7,596.3,0.30778536]
[1745489436594,0.29151588,597.69,596.29,1.182]
[1745489436795,0.29151588,597.69,596.3,0.30776832]
[1745489439700,0.29151588,597.69,596.29,1.182]
[1745489439898,0.29151588,597.69,596.3,0.30778312]
[1745489441199,1.036,597.7,596.3,0.30778312]
[1745489441500,0.29152565,597.68,596.3,0.30778312]
[1745489442801,0.29152565,597.68,596.29,1.182]
[1745489443003,0.29152565,597.68,596.3,0.30781369]
[1745489444104,1.036,597.7,596.3,0.30781369]
[1745489444404,0.29152565,597.67,596.3,0.30781369]
[1745489444704,0.29152565,597.67,596.31,0.30781118]
[1745489444904,0.29152565,597.67,596.3,0.30781118]
[1745489445104,0.29152565,597.67,596.32,0.30781118]
[1745489445303,0.29152565,597.67,596.33,0.30781118]
[1745489445499,0.29152565,597.67,596.3,0.30781118]
[1745489445705,0.29152565,597.67,596.31,0.30781118]
[1745489445900,0.29152565,597.67,596.3,0.30781118]
[1745489446105,0.29152565,597.67,596.31,0.30781425]
[1745489446302,0.29152565,597.67,596.32,0.30781425]
[1745489446503,0.29152565,597.67,596.3,0.30781425]
[1745489446703,0.29152565,597.67,596.31,0.30781425]
[1745489446901,0.29152565,597.67,596.3,0.30781425]
[1745489447102,0.29152565,597.67,596.31,0.30781425]
[1745489447302,1.27196278,598.63,596.3,0.30781425]
[1745489447503,1.27196278,598.63,596.31,0.30781425]
[1745489447702,1.27196278,598.63,596.3,0.30781425]
[1745489447905,1.27196278,598.48,596.3,0.30781425]
[1745489448501,0.29143044,598.47,596.3,0.30781425]
[1745489450111,1.27196278,598.48,596.3,0.30781425]
[1745489450608,0.29143044,598.46,596.29,1.47343044]
[1745489450806,1.27196278,598.24,596.3,0.30781243]
[1745489451308,1.27196278,598.24,596.3,1.44781243]
[1745489451508,1.27196278,598.24,596.31,0.30781243]
[1745489453508,0.29145851,598.23,596.31,0.30781243]
[1745489453910,1.27196278,598.13,596.31,0.30781243]
[1745489455215,1.27196278,598.13,596.3,1.43145851]
[1745489455409,1.27196278,598.13,596.31,0.30781068]
[1745489456615,0.29147193,598.12,596.31,0.30781068]
[1745489458116,1.27196278,598.04,596.31,0.30781068]
[1745489458312,1.27196278,598.04,596.3,1.43147193]
[1745489458516,1.27196278,598.04,596.31,1.19580873]
[1745489458715,1.27196278,598.04,596.32,0.30780873]
[1745489460420,0.29147193,598.03,596.33,0.88]
[1745489460714,0.29147193,598.03,596.34,0.30780873]
[1745489465123,1.27196278,598.04,596.34,0.30780873]
[1745489465617,1.27196278,598.04,596.33,0.88]
[1745489465818,1.27196278,598.27,596.34,0.30777809]
[1745489466417,0.29144142,598.26,596.34,0.30777809]
[1745489468323,1.27196278,598.27,596.34,0.30777809]
[1745489468623,0.29144142,598.25,596.34,0.30777809]
[1745489469518,0.29144142,598.25,596.35,0.95]
[1745489469722,0.29144142,598.25,596.36,0.30777809]
[1745489471123,1.27196278,598.27,596.36,0.30777809]
[1745489471725,1.27196278,598.26,596.36,0.30777809]
[1745489472019,1.27196278,598.26,596.37,0.30777902]
[1745489472224,1.27196278,598.26,596.38,0.30777902]
[1745489472519,0.2914402,598.25,596.39,0.30777902]
[1745489472725,0.2914402,598.25,596.36,0.30777902]
[1745489473024,0.2914402,598.25,596.37,0.30777902]
[1745489473322,0.2914402,598.25,596.38,0.30777902]
[1745489473520,0.2914402,598.25,596.39,0.30777902]
[1745489473723,0.2914402,598.25,596.4,0.30777844]
[1745489473920,0.2914402,598.25,596.41,0.30777844]
[1745489474124,1.27196278,598.26,596.36,0.30777844]
[1745489474321,1.27196278,598.26,596.41,0.766]
[1745489474526,0.2914402,598.24,596.42,0.30777844]
[1745489475827,2.17131061,598.19,596.42,0.30777844]
[1745489476120,1.27196278,598.05,596.42,0.30777844]
[1745489476622,1.27196278,598.05,596.41,0.766]
[1745489476830,1.27196278,598.05,596.42,0.30777869]
[1745489477428,0.29145851,598.04,596.42,0.30777869]
[1745489477629,1.21345851,598.04,596.42,0.30777869]
[1745489478631,1.27196278,598.01,596.42,0.30777869]
[1745489481439,0.29146339,598.0,596.42,0.30777869]
[1745489481635,1.27196278,597.93,596.42,0.30777869]
[1745489484343,0.922,598.04,596.41,0.766]
[1745489484644,0.29147315,597.92,596.42,0.30777709]
[1745489484842,0.922,598.04,596.42,0.30777709]